Cogmind - Beta 11.1 --- EXPLORER MODE // 2022.07.26 @ 01:10:03 // AFD2020/Player2 Player: Rainynight Result: Core destroyed Performance ------------- Evolutions (3) 1500 Regions Visited (12) 2400 Robots Destroyed (86) 430 Value Destroyed (2201) 2201 Prototype IDs (47) 940 Alien Tech Used (0) 0 Bonus (4164) 4164 TOTAL SCORE: 11635 Bonus ------- Follower Combat Kills 1547 Aligned with FarCom 300 Met Imprinter 300 Was Imprinted 300 Destroyed Z-Imprinter 1000 Triggered Deep Caves Wall 500 Exposed GOLEM Chamber 500 Friendly Fire -283 Cogmind --------- Core Integrity 0/700 Matter 210/300 Energy 99/100 System Corruption 0% Temperature Cool (0) Movement Rolling (150) Ox4 Location -7/Deep Caves Parts ------- > --- POWER (1) -------- Zionite Light DM Reactor > --- PROPULSION (3) --- Medium Treads Medium Treads Armored Wheel > --- UTILITY (6) ------ Large Storage Unit Structural Scanner Zionite Weapon Casing Hardened Medium Armor Plating Recalibrator > --- WEAPON (4) ------- Zionite Phaser-S AWS/Thermal Longsword +1 > --- INVENTORY (15) --- Hybrid Deuterium Engine Hybrid Deuterium Engine Experimental Heat Sink High-capacity Matter Pod (200) Advanced Visual Processing Unit Improved Sensor Array Improved Signal Interpreter Improved Terrain Scanner Advanced Terrain Scan Processor Advanced Phase Shifter Zionite Weapon Casing Phasing Sabre Peak State ------------ > --- POWER ------------ Zionite Light DM Reactor > --- PROPULSION ------- Medium Treads Zionite Composite Leg I Armored Wheel > --- UTILITY ---------- Large Storage Unit Advanced Phase Shifter Zionite Weapon Casing Zionite Heavy Carapace Hardened Medium Armor Plating > --- WEAPON ----------- Zionite Phaser-S AWS/Thermal Longsword +1 > --- INVENTORY -------- Hybrid Deuterium Engine Hybrid Deuterium Engine Experimental Heat Sink High-capacity Matter Pod Structural Scanner Advanced Visual Processing Unit Improved Sensor Array Improved Signal Interpreter Improved Terrain Scanner Advanced Terrain Scan Processor Zionite Weapon Casing Zionite Light Carapace Zionite Light Carapace Recalibrator Phasing Sabre [Rating: 88] Favorites ----------- Power Hybrid Deuterium Engine Engine Hybrid Deuterium Engine Power Core Light Nuclear Core Reactor Zionite Light DM Reactor Propulsion Light Treads Treads Light Treads Leg Aluminum Leg Wheel Armored Wheel Hover Unit Zionite Glidesys I Utility Large Storage Unit Device Structural Scanner Storage Large Storage Unit Processor Core Analyzer Protection Hardened Medium Armor Plating Weapon AWS/Thermal Energy Gun AWS/Thermal Energy Cannon Long-range Proton Cannon Ballistic Gun Light Assault Rifle Ballistic Cannon Assault Cannon Special Weapon RU-N14's Throwing Claymores Impact Weapon Powered Hammer Slashing Weapon Longsword +1 Build | -11 -10 -10 -9 -9 -9 -8 -8 -7 -7 -7 -7 -7 ------- Run | Scr Mat Min Mat Min Exi Min Mat Fac Low Low Zio Dee Slots Evolved 7 | . 1 . 2 . . . 2 2 . . . . Power . | . . . . . . . . . . . . . Propulsion 1 | . . . 1 . . . . . . . . . Utility 4 | . . . 1 . . . 1 2 . . . . Weapon 2 | . 1 . . . . . 1 . . . . . Parts Attached 127 | . 7 1 3 2 2 1 18 23 3 5 10 52 Power 20 | . 1 . . 1 . 1 3 4 . 2 . 8 Engine 10 | . 1 . . . . . 2 3 . 2 . 2 Core 4 | . . . . 1 . 1 1 1 . . . . Reactor 6 | . . . . . . . . . . . . 6 Propulsion 22 | . 3 . 2 . . . 4 3 1 1 . 8 Treads 12 | . 2 . 1 . . . 1 3 . 1 . 4 Leg 1 | . . . . . . . . . . . . 1 Wheel 7 | . 1 . 1 . . . 3 . 1 . . 1 Hover 2 | . . . . . . . . . . . . 2 Flight . | . . . . . . . . . . . . . Utility 62 | . 2 . 1 . . . 5 14 2 2 4 32 Device 31 | . . . . . . . 1 7 2 2 2 17 Storage 4 | . 2 . . . . . . . . . 1 1 Processor 5 | . . . 1 . . . 1 2 . . 1 . Hackware . | . . . . . . . . . . . . . Protection 22 | . . . . . . . 3 5 . . . 14 Artifact . | . . . . . . . . . . . . . Weapon 23 | . 1 1 . 1 2 . 6 2 . . 6 4 Energy Gun 8 | . . . . . 1 . 3 1 . . . 3 Energy Cannon 1 | . . . . . . . . 1 . . . . Ballistic Gun 3 | . 1 1 . 1 . . . . . . . . Ballistic Cannon 2 | . . . . . . . 2 . . . . . Launcher . | . . . . . . . . . . . . . Special Weapon 2 | . . . . . . . . . . . 2 . Impact Weapon 1 | . . . . . . . . . . . 1 . Slashing Weapon 6 | . . . . . 1 . 1 . . . 3 1 Piercing Weapon . | . . . . . . . . . . . . . Special Melee Weapon . | . . . . . . . . . . . . . Unidentified Prototypes 16 | . . . . . . . 2 . . . 2 12 Parts Lost 7 | . . . . . . . 1 3 . . . 3 Power . | . . . . . . . . . . . . . Propulsion 1 | . . . . . . . . 1 . . . . Utility 5 | . . . . . . . . 2 . . . 3 Weapon 1 | . . . . . . . 1 . . . . . Highest Loss Streak 2 | . . . . . . . 1 2 . . . 2 To Critical Strikes . | . . . . . . . . . . . . . Average Slot Usage (%) 91 | . 97 100 93 100 92 90 89 91 92 92 91 87 Engine 6 | . 12 12 10 4 . . 1 6 7 7 7 4 Core 1 | . . . . 5 10 10 5 . . . . . Treads 13 | . 6 12 20 20 20 20 16 14 14 14 14 11 Leg 1 | . 11 . . . . . . . . . . 2 Wheel 7 | . 5 12 10 10 10 10 8 7 7 7 7 6 Device 10 | . . . . . . . 5 9 14 20 16 9 Storage 7 | . 12 12 10 10 10 10 8 7 7 7 7 7 Processor 7 | . . . 3 10 10 10 2 9 7 7 11 6 Protection 11 | . 12 12 10 10 10 10 15 15 14 7 7 14 Energy Gun 7 | . . . . . 7 10 8 12 7 7 7 11 Energy Cannon 3 | . . . . . . . . 1 7 7 7 2 Ballistic Gun 4 | . 34 37 30 30 6 . . . . . . . Slashing Weapon 6 | . . . . . 7 10 8 7 7 7 6 7 Naked Turns . | . . . . . . . . . . . . . Heaviest Build 69 | 17 50 30 29 29 37 37 51 65 65 65 69 66 Greatest Support 40 | 20 40 16 16 16 16 16 16 12 12 12 12 28 Greatest Overweight (x) 20 | . 3 1 1 1 2 2 4 5 5 5 5 20 Average Overweight (x) 3 | . . 1 1 1 1 2 3 3 5 4 4 4 Largest Inventory Capacity 20 | 10 20 15 15 15 15 15 15 15 15 15 15 15 Average Capacity 14 | 10 14 15 15 15 15 15 15 15 15 15 15 15 Most Carried 17 | 6 17 15 15 15 15 15 15 15 15 15 15 15 Average Carried 14 | 6 10 15 14 15 14 15 14 14 14 14 14 14 Final Capacity 15 | 10 15 15 15 15 15 15 15 15 15 15 15 15 Final Carried 15 | 6 15 15 15 15 15 15 15 15 15 15 15 12 Class Distribution -------------------- 50% | Hacker-Tank 31% | Hacker-Gunner 15% | Hacker-Mutant 3% | Scavenger-Tank Dominant Class ---------------- Hacker-Tank | -10/Materials Hacker-Tank | -10/Mines Hacker-Tank | -9/Materials Scavenger-Tank | -9/Mines Hacker-Mutant | -9/Exiles Hacker-Mutant | -8/Mines Hacker-Tank | -8/Materials Hacker-Tank | -7/Factory Hacker-Tank | -7/Lower Caves Hacker-Gunner | -7/Lower Caves Hacker-Gunner | -7/Zion Hacker-Tank | -7/Deep Caves Resources | -11 -10 -10 -9 -9 -9 -8 -8 -7 -7 -7 -7 -7 ----------- Run | Scr Mat Min Mat Min Exi Min Mat Fac Low Low Zio Dee Matter Collected 1934 | 200 387 99 38 90 20 10 170 277 50 50 90 453 Remotely . | . . . . . . . . . . . . . Salvage Created 4005 | . 604 57 320 221 . 115 956 563 226 245 69 629 Parts 179 | . 25 6 16 11 . 7 49 26 3 20 2 14 Haulers Intercepted 4 | . 2 . 1 . . . 1 . . . . . Recyclers Shooed 4 | . 2 . . 2 . . . . . . . . Parts Field Recycled . | . . . . . . . . . . . . . Retrieved Matter . | . . . . . . . . . . . . . Parts Self-Destructed . | . . . . . . . . . . . . . Prevented . | . . . . . . . . . . . . . Kills | -11 -10 -10 -9 -9 -9 -8 -8 -7 -7 -7 -7 -7 ------- Run | Scr Mat Min Mat Min Exi Min Mat Fac Low Low Zio Dee Combat Hostiles Destroyed 77 | . 6 4 2 1 . 2 9 19 5 9 . 20 Melee 18 | . . . . . . . 1 17 . . . . Guns 50 | . 6 4 2 1 . 2 7 1 . 7 . 20 Cannons 7 | . . . . . . . 1 1 3 2 . . AOE 2 | . . . . . . . . . 2 . . . Classes Destroyed 21 | . 6 . 1 . . 2 4 4 . . 1 3 Worker 11 | . 1 . 2 1 . . 7 . . . . . Builder 1 | . . . . . . . 1 . . . . . Tunneler 2 | . . . . . . 1 1 . . . . . Hauler 4 | . 2 . 1 . . . 1 . . . . . Recycler 11 | . 4 . 2 2 . . 3 . . . . . Mechanic 2 | . . . . . . . 2 . . . . . Operator 2 | . . . 1 . . . . 1 . . . . Watcher 4 | . 1 . . . . . 3 . . . . . Swarmer 23 | . 3 4 . . . . 3 3 2 8 . . Grunt 14 | . 3 . 2 1 . 1 3 1 2 1 . . Brawler 2 | . . . . . . . . 1 1 . . . Duelist 2 | . . . . . . 1 1 . . . . . Sentry 1 | . . . . . . . 1 . . . . . Demolisher 1 | . . . . . . . . 1 . . . . Hunter 1 | . . . . . . . 1 . . . . . Programmer 1 | . . . . . . . . 1 . . . . Z-Technician 1 | . . . . . . . . . . . . 1 Z-Light 1 | . . . . . . . . . . . . 1 Assembler 1 | . . . . . . . . . . . . 1 Assembled 27 | . . . . . . . . 12 . . . 15 Golem 4 | . . . . . . . . . . . . 4 Mutant 1 | . . . . . . . . . . . 1 . Best Kill Streak 19 | . 4 2 3 1 . 2 19 12 3 3 . 13 Combat Bots Only 13 | . 4 2 1 1 . 2 3 12 3 3 . 13 Max Kills in Single Turn 2 | . 2 1 1 1 . 1 2 1 2 2 1 2 Gunslinging 1 | . 1 . . . . . . . . . . . Exploded 2 | . . . . . . . . . 2 . . . Melee 1 | . . . . . . . 1 1 . . . . Uniques/NPCs Destroyed 1 | . . . . . . . . . . . . 1 Z-Imprinter (-7/Deep Caves) Combat | -11 -10 -10 -9 -9 -9 -8 -8 -7 -7 -7 -7 -7 -------- Run | Scr Mat Min Mat Min Exi Min Mat Fac Low Low Zio Dee Damage Taken 1864 | . 95 37 63 25 . . 111 779 45 52 . 657 Core 277 | . 21 5 20 18 . . . 112 5 7 . 89 Absorbed by Shields 116 | . . . . . . . . 40 13 21 . 42 Redirected to Shielding 84 | . 6 . 4 . . . 8 44 . . . 22 Core Remaining (%) 92 | 100 . 89 . . . 85 97 . . . . . Volleys Fired 135 | . 38 7 17 10 . . 2 23 11 3 1 23 Largest 3 | . 3 3 3 3 . . 1 1 1 1 1 1 Hottest 81 | . 60 60 60 60 . . 44 81 81 81 81 81 Shots Fired 400 | . 103 21 51 30 . 4 28 25 11 16 1 110 Gun 381 | . 103 21 51 30 . 4 26 24 . 13 . 109 Cannon 19 | . . . . . . . 2 1 11 3 1 1 Launcher . | . . . . . . . . . . . . . Special . | . . . . . . . . . . . . . Kinetic 207 | . 103 21 51 30 . . 2 . . . . . Thermal 158 | . . . . . . 4 26 24 . 13 . 91 Explosive . | . . . . . . . . . . . . . Electromagnetic 17 | . . . . . . . . 1 11 3 1 1 Phasic 18 | . . . . . . . . . . . . 18 Robot Hit Streak 30 | . 21 9 19 30 . 5 17 20 9 9 . 17 Robot Miss Streak 3 | . 2 2 3 1 . . 1 2 1 1 . 1 Penetration Max . | . . . . . . . . . . . . . Secondary Targets 3 | . 1 1 . 1 . . . . . . . . Max Gunslinging Chain 1 | . 1 1 . 1 . . . . . . . . Autonomous 134 | . . . . . . 4 26 3 . 13 . 88 Shots Hit Robots 392 | . 82 13 40 26 . 6 45 58 10 15 1 96 Core Hits 183 | . 27 5 16 13 . 3 21 28 7 9 . 54 Critical Kills . | . . . . . . . . . . . . . Critical Parts Destroyed 1 | . . . 1 . . . . . . . . . Critical Strikes 4 | . . . 1 . . . 1 2 . . . . Destroy 1 | . . . 1 . . . . . . . . . Sever 3 | . . . . . . . 1 2 . . . . Melee Attacks 127 | . . . . . . 2 21 45 2 10 45 2 Impact 37 | . . . . . . . . . . . 37 . Slashing 90 | . . . . . . 2 21 45 2 10 8 2 Piercing . | . . . . . . . . . . . . . Sneak Attacks 21 | . . . . . . 1 15 3 . 1 1 . Combat Hostiles . | . . . . . . . . . . . . . Follow-up Attacks . | . . . . . . . . . . . . . Damage Inflicted 10741 | . 806 107 353 215 . 250 2392 2644 419 556 112 2887 Guns 5949 | . 806 107 353 211 . 112 712 409 . 382 . 2857 Cannons 544 | . . . . . . . 52 38 324 100 . 30 Explosions 95 | . . . . . . . . . 95 . . . Melee 4149 | . . . . . . 138 1628 2197 . 74 112 . Ramming 4 | . . . . 4 . . . . . . . . Kinetic 1529 | . 806 107 353 211 . . 52 . . . . . Thermal 4039 | . . . . . . 112 712 409 95 382 . 2329 Explosive . | . . . . . . . . . . . . . Electromagnetic 492 | . . . . . . . . 38 324 100 . 30 Impact 112 | . . . . . . . . . . . 112 . Slashing 4037 | . . . . . . 138 1628 2197 . 74 . . Piercing . | . . . . . . . . . . . . . Phasic 528 | . . . . . . . . . . . . 528 Highest Corruption 1 | . . . . . . . . 1 . . . . Average Corruption 1 | . . . . . . . . 1 . . . . Corruption Purged 1 | . . . . . . . . 1 . . . . Corruption Blocked . | . . . . . . . . . . . . . Effects 5 | . . . . . . . . 5 . . . . Heat Flow Errors 3 | . . . . . . . . 3 . . . . Energy Discharges 1 | . . . . . . . . 1 . . . . Parts Rejected 1 | . . . . . . . . 1 . . . . Overload Shots . | . . . . . . . . . . . . . Overflow Damage 710 | . . . . . . 62 349 175 . 34 90 . Projectiles . | . . . . . . . . . . . . . Explosions . | . . . . . . . . . . . . . Melee 710 | . . . . . . 62 349 175 . 34 90 . Knockbacks . | . . . . . . . . . . . . . Impact . | . . . . . . . . . . . . . Kinetic . | . . . . . . . . . . . . . Secondary . | . . . . . . . . . . . . . Self-Inflicted Damage . | . . . . . . . . . . . . . Shots . | . . . . . . . . . . . . . Rammed 1 | . . . . 1 . . . . . . . . Targets Rammed 1 | . . . . 1 . . . . . . . . Kicked . | . . . . . . . . . . . . . Crushed . | . . . . . . . . . . . . . Highest Temperature 320 | . 103 40 37 43 . . 10 320 211 50 28 212 Average Temperature 44 | . 32 18 13 21 . . 8 65 80 27 14 47 Received Heat Transfer 480 | . 87 . 24 24 . . 36 120 25 12 . 152 Effects 1 | . . . . . . . . 1 . . . . Matter Decay 1 | . . . . . . . . 1 . . . . Siege Activations . | . . . . . . . . . . . . . Robots Corrupted . | . . . . . . . . . . . . . Combat Hostiles . | . . . . . . . . . . . . . Parts Fried 5 | . . . . . . . . . 5 . . . Impact Corruptions 1 | . . . . . . . . . . . 1 . Robots Melted . | . . . . . . . . . . . . . Combat Hostiles . | . . . . . . . . . . . . . Parts Melted 4 | . . . . . . . 1 . . 1 . 2 Heat Transferred 5243 | . . . . . . 148 777 777 100 407 . 3034 Parts Sabotaged . | . . . . . . . . . . . . . Parts Stolen . | . . . . . . . . . . . . . Parts Stripped . | . . . . . . . . . . . . . Power Chain Reactions 1 | . . . . . . . . . 1 . . . Missiles Intercepted . | . . . . . . . . . . . . . Alert | -11 -10 -10 -9 -9 -9 -8 -8 -7 -7 -7 -7 -7 ------- Run | Scr Mat Min Mat Min Exi Min Mat Fac Low Low Zio Dee Peak Influence 397 | . 149 157 190 97 . 58 397 385 . . . . Initial 130 | . . 34 42 27 . . 15 130 . . . . Average 123 | . 64 90 83 66 . 11 177 163 . . . . Maximum Alert Level 1 | . . . . . . . 1 1 . . . . Low Security (%) 79 | 100 100 100 100 100 . 100 60 66 . . . . Level 1 20 | . . . . . . . 39 33 . . . . Level 2 . | . . . . . . . . . . . . . Level 3 . | . . . . . . . . . . . . . Level 4 . | . . . . . . . . . . . . . Level 5 . | . . . . . . . . . . . . . High Security . | . . . . . . . . . . . . . Max Security . | . . . . . . . . . . . . . Squads Dispatched 11 | . . . 3 1 . . . 7 . . . . Investigation 4 | . . . 2 1 . . . 1 . . . . Extermination 2 | . . . . . . . . 2 . . . . Reinforcement 4 | . . . 1 . . . . 3 . . . . Assault 1 | . . . . . . . . 1 . . . . Garrison . | . . . . . . . . . . . . . Intercept . | . . . . . . . . . . . . . Searches Triggered . | . . . . . . . . . . . . . Construction Impeded 1 | . . . . . . . . 1 . . . . Haulers Reinforced 1 | . . . . . . . . 1 . . . . Active Scanning Responses . | . . . . . . . . . . . . . Cargo Convoy Interrupts . | . . . . . . . . . . . . . Stealth | -11 -10 -10 -9 -9 -9 -8 -8 -7 -7 -7 -7 -7 --------- Run | Scr Mat Min Mat Min Exi Min Mat Fac Low Low Zio Dee Distress Signals 1 | . . . . . . . 1 . . . . . Communications Jammed . | . . . . . . . . . . . . . Distress Signals . | . . . . . . . . . . . . . Times Spotted 165 | . 11 4 10 2 . 1 15 33 10 13 1 65 Peak Tracking Total 38 | . 2 2 5 2 . 1 5 3 5 3 1 38 Tactical Retreats 2 | . . . . . . . . . . 1 . 1 Traps | -11 -10 -10 -9 -9 -9 -8 -8 -7 -7 -7 -7 -7 ------- Run | Scr Mat Min Mat Min Exi Min Mat Fac Low Low Zio Dee Traps Triggered 3 | . . . . . . . . 3 . . . . Indirectly . | . . . . . . . . . . . . . Trap Hack Attempts . | . . . . . . . . . . . . . Triggered . | . . . . . . . . . . . . . Disarmed . | . . . . . . . . . . . . . Reprogrammed . | . . . . . . . . . . . . . Reused . | . . . . . . . . . . . . . Traps Extracted . | . . . . . . . . . . . . . Installed 5 | . . . . . . . . . . 5 . . Triggered . | . . . . . . . . . . . . . Machines | -11 -10 -10 -9 -9 -9 -8 -8 -7 -7 -7 -7 -7 ---------- Run | Scr Mat Min Mat Min Exi Min Mat Fac Low Low Zio Dee Machines Disabled 11 | . . . . . . . 1 5 . . . 5 Max in Single Turn 1 | . . . . . . . 1 1 . . . 1 Garrison Access 1 | . . . . . . . . 1 . . . . Machines Sabotaged . | . . . . . . . . . . . . . Garrisons Compromised . | . . . . . . . . . . . . . Overloaded Fab Kills . | . . . . . . . . . . . . . Hacking | -11 -10 -10 -9 -9 -9 -8 -8 -7 -7 -7 -7 -7 --------- Run | Scr Mat Min Mat Min Exi Min Mat Fac Low Low Zio Dee Machines Accessed 22 | . 7 . 2 1 2 . 2 8 . . . . Terminals 12 | . 5 . 2 1 . . 1 3 . . . . Fabricators 2 | . . . . . . . . 2 . . . . Repair Stations . | . . . . . . . . . . . . . Recycling Units 4 | . 2 . . . . . . 2 . . . . Scanalyzers 2 | . . . . . . . 1 1 . . . . Garrison Access . | . . . . . . . . . . . . . Total Hacks 91 | . 21 . 8 2 24 . 12 24 . . . . Successful 63 | . 12 . 2 1 24 . 10 14 . . . . Failed 28 | . 9 . 6 1 . . 2 10 . . . . Catastrophic 2 | . 1 . 1 . . . . . . . . . Database Lockouts . | . . . . . . . . . . . . . Manual 44 | . 12 . 7 3 1 . 4 12 . . 5 . Terminals 45 | . 18 . 8 2 . . 4 13 . . . . Fabricators 5 | . . . . . . . . 5 . . . . Repair Stations . | . . . . . . . . . . . . . Recycling Units 6 | . 3 . . . . . . 3 . . . . Scanalyzers 11 | . . . . . . . 8 3 . . . . Garrison Access . | . . . . . . . . . . . . . Terminal Hacks 38 | . 6 . 2 1 24 . 2 3 . . . . Record 23 | . . . . . 23 . . . . . . . Robot Analysis 8 | . 5 . 1 1 . . . 1 . . . . Prototype ID Bank 4 | . 1 . . . . . 2 1 . . . . Scanalyzer Index 1 | . . . . . . . . 1 . . . . Unreport Threat 1 | . . . 1 . . . . . . . . . EX-Prototype ID Bank 1 | . . . . . 1 . . . . . . . Fabricator Hacks 3 | . . . . . . . . 3 . . . . Load Schematic 2 | . . . . . . . . 2 . . . . Build 1 | . . . . . . . . 1 . . . . Repair Station Hacks . | . . . . . . . . . . . . . Recycling Unit Hacks 6 | . 3 . . . . . . 3 . . . . Report Inventory 4 | . 2 . . . . . . 2 . . . . Retrieve Components 2 | . 1 . . . . . . 1 . . . . Scanalyzer 10 | . . . . . . . 8 2 . . . . Insert Component 6 | . . . . . . . 5 1 . . . . Analyze 4 | . . . . . . . 3 1 . . . . Garrison Access Hacks . | . . . . . . . . . . . . . Unauthorized Hacks 6 | . 3 . . . . . . 3 . . . . Terminals 5 | . 3 . . . . . . 2 . . . . Botnet 5 | . 3 . . . . . . 2 . . . . Fabricators 1 | . . . . . . . . 1 . . . . Fabnet 1 | . . . . . . . . 1 . . . . Repair Stations . | . . . . . . . . . . . . . Recycling Units . | . . . . . . . . . . . . . Scanalyzers . | . . . . . . . . . . . . . Garrison Access . | . . . . . . . . . . . . . Data Cores Recovered . | . . . . . . . . . . . . . Used . | . . . . . . . . . . . . . Hacking Detections 18 | . 6 . 2 1 . . 2 7 . . . . Full Trace Events 8 | . 3 . 2 1 . . 1 1 . . . . Feedback Events . | . . . . . . . . . . . . . Feedback Blocked . | . . . . . . . . . . . . . Robot Schematics Acquired 4 | . . . . . . . . . . . 4 . Robots Built . | . . . . . . . . . . . . . Authchips . | . . . . . . . . . . . . . Time . | . . . . . . . . . . . . . Total Robot Build Rating . | . . . . . . . . . . . . . Part Schematics Acquired 18 | . . . . . . . 3 1 . . 14 . Parts Built 2 | . . . . . . . . 2 . . . . Authchips . | . . . . . . . . . . . . . Time 84 | . . . . . . . . 84 . . . . Total Part Build Rating 8 | . . . . . . . . 8 . . . . Parts Repaired . | . . . . . . . . . . . . . Time . | . . . . . . . . . . . . . Parts Recycled . | . . . . . . . . . . . . . Recycled Matter . | . . . . . . . . . . . . . Retrieved Matter . | . . . . . . . . . . . . . Retrieved Components 5 | . 2 . . . . . . 3 . . . . Parts Scanalyzed 4 | . . . . . . . 3 1 . . . . Part Schematics Acquired 4 | . . . . . . . 3 1 . . . . Parts Damaged . | . . . . . . . . . . . . . Bothacking | -11 -10 -10 -9 -9 -9 -8 -8 -7 -7 -7 -7 -7 ------------ Run | Scr Mat Min Mat Min Exi Min Mat Fac Low Low Zio Dee Used RIF Installer . | . . . . . . . . . . . . . Robots Hacked . | . . . . . . . . . . . . . Non-combat . | . . . . . . . . . . . . . Combat . | . . . . . . . . . . . . . Robot Hacks Applied . | . . . . . . . . . . . . . Relay Couplers Released . | . . . . . . . . . . . . . Fabnet Peak Effective % . | . . . . . . . . . . . . . Robots Rewired . | . . . . . . . . . . . . . Allies Hacked . | . . . . . . . . . . . . . Hacks Repelled . | . . . . . . . . . . . . . Allies | -11 -10 -10 -9 -9 -9 -8 -8 -7 -7 -7 -7 -7 -------- Run | Scr Mat Min Mat Min Exi Min Mat Fac Low Low Zio Dee Total Allies 12 | . 1 2 . . . . . . . . 8 1 Largest Group 9 | . 1 3 3 2 2 1 1 1 1 1 9 6 Highest-Rated Group 502 | . 58 104 106 92 92 61 74 86 86 88 502 488 Highest-Rated Ally 119 | . 58 58 61 61 61 61 74 86 86 88 100 119 Total Orders . | . . . . . . . . . . . . . Ally Attacks 393 | . 7 2 25 5 . 1 5 46 16 3 8 275 Total Damage 18007 | . 89 42 458 60 . 22 178 2691 515 106 270 13576 Kills 118 | . 2 . 5 1 . . 3 27 7 3 1 69 Allies Corrupted 1 | . . . . . . . . . . . 1 . Allies Melted . | . . . . . . . . . . . . . Fabricated Assembled 2 | . . . . . . . . . . . . 2 Intel | -11 -10 -10 -9 -9 -9 -8 -8 -7 -7 -7 -7 -7 ------- Run | Scr Mat Min Mat Min Exi Min Mat Fac Low Low Zio Dee Robot Analysis Total 8 | . 5 . 1 1 . . . 1 . . . . Derelict Logs Recovered 4 | . . . . . . . . . 1 1 2 . Drone Launches . | . . . . . . . . . . . . . Drone Recoveries . | . . . . . . . . . . . . . Exploration | -11 -10 -10 -9 -9 -9 -8 -8 -7 -7 -7 -7 -7 ------------- Run | Scr Mat Min Mat Min Exi Min Mat Fac Low Low Zio Dee Turns Passed 10859 | 1 749 161 211 354 653 180 765 1458 957 1527 2344 1499 Spaces Moved 6402 | 1 468 113 121 277 501 129 442 822 463 869 1407 789 Core 1 | . . . . . . . . . . . . 1 Treads 8 | . 7 . . . . . . . . . . 1 Legs 240 | 1 238 . . . . . . . . . . 1 Wheels 6153 | . 223 113 121 277 501 129 442 822 463 869 1407 786 Hover . | . . . . . . . . . . . . . Flight . | . . . . . . . . . . . . . Fastest Speed 115 | 120 115 115 115 115 115 130 130 135 165 150 150 150 Average Speed 147 | 120 126 115 115 115 126 130 142 149 165 164 155 158 Slowest Speed 1050 | 120 240 115 115 115 130 130 150 165 165 165 165 1050 Overloaded Moves . | . . . . . . . . . . . . . Propulsion Burnouts . | . . . . . . . . . . . . . Robots Hopped . | . . . . . . . . . . . . . Cave-ins Triggered . | . . . . . . . . . . . . . Exploration Rate (%) 53 | 2 63 38 18 65 90 31 33 28 60 88 91 89 Regions Visited 12 Branch Regions 8 Pre-discovered Areas 4 | . . . . . 1 . . . 1 . 2 . Known Exits Taken 12 | 1 1 1 1 1 1 1 1 1 1 1 1 . Unknown Exits Taken . | . . . . . . . . . . . . . Scrap Searched 7 | . . . . . . . . . 3 3 1 . Spaces Dug 30 | . . . . . . . . 8 2 9 9 2 Terrain Destroyed 42 | . . . . . . . 4 8 7 11 9 3 Melee 30 | . . . . . . . . 8 2 9 9 2 Projectile 7 | . . . . . . . 4 . . 2 . 1 AOE 5 | . . . . . . . . . 5 . . . Terrain Rammed . | . . . . . . . . . . . . . Walls Destroyed . | . . . . . . . . . . . . . Machines Disabled . | . . . . . . . . . . . . . Actions | -11 -10 -10 -9 -9 -9 -8 -8 -7 -7 -7 -7 -7 --------- Run | Scr Mat Min Mat Min Exi Min Mat Fac Low Low Zio Dee Total 7462 | 1 555 131 164 296 523 139 565 989 645 951 1495 1008 Wait 492 | . 17 11 23 5 10 7 51 41 159 53 19 96 Move 6390 | . 467 112 120 276 500 128 441 821 462 868 1406 789 Hop . | . . . . . . . . . . . . . Pick Up 62 | . 16 . 1 . 4 . 9 12 4 2 4 10 Fast Attach 58 | . 2 . . 1 2 1 10 9 . 1 6 26 Attach 15 | . . . 2 . . . 3 6 . . 1 3 Detach 8 | . 1 . . . . . 4 2 . . . 1 Swap 55 | . 5 1 1 1 . . 6 8 3 4 3 23 Drop 114 | 1 9 . . 2 7 1 18 22 4 5 10 35 Fire 135 | . 38 7 17 10 . . 2 23 11 3 1 23 Melee 127 | . . . . . . 2 21 45 2 10 45 2 Ram . | . . . . . . . . . . . . . Kick . | . . . . . . . . . . . . . Crush 1 | . . . . 1 . . . . . . . . Escape Stasis . | . . . . . . . . . . . . . Rewire . | . . . . . . . . . . . . . Trap 5 | . . . . . . . . . . 5 . . Miscellaneous . | . . . . . . . . . . . . . Route ------- -11/Scrapyard -10/Materials (discovered 3 exits: *Mat x2 / *Min) -10/Mines -9/Materials (discovered 2 exits: *Min x2) -9/Mines (discovered 3 exits: *Mat / *Exi / *Zio) -9/Exiles (discovered 2 exits: *Min x2) -8/Mines -8/Materials -7/Factory (discovered 2 exits: *Fac / *Low) -7/Lower Caves -7/Lower Caves (discovered 2 exits: *Fac / *Zio) -7/Zion (discovered 2 exits: *Dee / *Pro) -7/Deep Caves (discovered 1 exit: Pro) History --------- Turn | Location | Event 2 | -11/Scrapyard | Identified exit to Materials 2 | -11/Scrapyard | Discovered exit to Materials (range 0) 2 | -11/Scrapyard | Entered Materials 2 | -10/Materials | Evolved 1 slot: Weapon x1 106 | -10/Materials | Identified exit to Materials 106 | -10/Materials | Discovered exit to Materials (range 15) 304 | -10/Materials | Discovered exit to Materials (range 7) 309 | -10/Materials | Identified exit to Mines 309 | -10/Materials | Discovered exit to Mines (range 14) 451 | -10/Materials | Build established: Hacker-Tank 751 | -10/Materials | Entered Mines 890 | -10/Mines | Discovered exit to Materials (range 9) 912 | -10/Mines | Entered Materials 912 | -9/Materials | Accompanied by 2 allies 912 | -9/Materials | Evolved 2 slots: Propulsion x1, Utility x1 917 | -9/Materials | Led the pair of lost Derelicts to an unsafe place 1043 | -9/Materials | Identified exit to Mines 1043 | -9/Materials | Discovered exit to Mines (range 16) 1062 | -9/Materials | Discovered exit to Mines (range 8) 1123 | -9/Materials | Entered Mines 1123 | -9/Mines | Accompanied by 1 ally 1131 | -9/Mines | A Derelict revealed a hidden shortcut to a safe place 1204 | -9/Mines | Identified exit to Materials 1204 | -9/Mines | Discovered exit to Materials (range 9) 1468 | -9/Mines | Deemed a non-threat by the Exiles lab entrance 1468 | -9/Mines | Identified exit to Exiles 1468 | -9/Mines | Discovered exit to Exiles (range 5) 1477 | -9/Mines | Entered Exiles 1477 | -9/Exiles | Accompanied by 1 ally 1507 | -9/Exiles | Led the pair of lost Derelicts to a safe place 1517 | -9/Exiles | Met 8R-AWN 1536 | -9/Exiles | Met EX-HEX 1567 | -9/Exiles | Met EX-BIN 1585 | -9/Exiles | Aligned with FarCom system 1586 | -9/Exiles | Given EX-Vault access code 1591 | -9/Exiles | Build established: Scavenger-Tank 1614 | -9/Exiles | Opened EX-Vault 1624 | -9/Exiles | Found AWS/Thermal 1630 | -9/Exiles | Found Longsword +1 1666 | -9/Exiles | Warned to stay clear of 0b10 Research branches 1700 | -9/Exiles | Met EX-DEC 1710 | -9/Exiles | Learned location of Zion (-7) 1797 | -9/Exiles | Identified exit to Mines 1797 | -9/Exiles | Discovered exit to Mines (range 12) 1888 | -9/Exiles | Visited The Gauntlet 1917 | -9/Exiles | Build established: Hacker-Mutant 2095 | -9/Exiles | Discovered exit to Mines (range 14) 2130 | -9/Exiles | Stole two prototypes: Longsword +1, AWS/Thermal 2130 | -9/Exiles | Entered Mines 2276 | -8/Mines | Discovered exit to Materials (range 9) 2310 | -8/Mines | Entered Materials 2310 | -8/Materials | Evolved 2 slots: Utility x1, Weapon x1 2663 | -8/Materials | Build established: Hacker-Tank 2993 | -8/Materials | Identified exit to Factory 2993 | -8/Materials | Discovered exit to Factory (range 14) 3075 | -8/Materials | Entered Factory 3075 | -7/Factory | Evolved 2 slots: Utility x2 3077 | -7/Factory | FarCom data flow suspended 3506 | -7/Factory | Assembled infested ambush trap array 3572 | -7/Factory | Destroyed 12 combat bots 3627 | -7/Factory | Identified exit to Factory 3627 | -7/Factory | Discovered exit to Factory (range 14) 4275 | -7/Factory | Fabricated Hyb. Deuterium Engine (x2) 4430 | -7/Factory | Identified exit to Lower Caves 4430 | -7/Factory | Discovered exit to Lower Caves (range 16) 4533 | -7/Factory | Entered Lower Caves 4534 | -7/Lower Caves | Encountered a Warlord checkpoint 4941 | -7/Lower Caves | Attracted the attention of an 0b10 checkpoint 4953 | -7/Lower Caves | Identified exit to Lower Caves 4953 | -7/Lower Caves | Discovered exit to Lower Caves (range 11) 5490 | -7/Lower Caves | Entered another Lower Caves area 5647 | -7/Lower Caves | Learned Factory trap positions 5697 | -7/Lower Caves | Discovered exit to Factory (range 8) 6072 | -7/Lower Caves | Attracted the attention of an 0b10 checkpoint 6163 | -7/Lower Caves | Encountered a Warlord checkpoint 6177 | -7/Lower Caves | Build established: Hacker-Gunner 6652 | -7/Lower Caves | Identified exit to Zion 6652 | -7/Lower Caves | Discovered exit to Zion (range 15) 7017 | -7/Lower Caves | Entered Zion 7088 | -7/Zion | Identified exit to Proximity Caves 7088 | -7/Zion | Discovered exit to Proximity Caves (range 16) 7204 | -7/Zion | Received a visual enhancement algorithm 7454 | -7/Zion | Learned Factory terminal intel 7470 | -7/Zion | Gained Derelict followers 7531 | -7/Zion | Given the Hacking Drone Bay 7562 | -7/Zion | Found Prototype Device 7562 | -7/Zion | Identified Hacking Drone Bay 7660 | -7/Zion | Found Prototype Special Weapon 7660 | -7/Zion | Identified RU-N14's Throwing Claymores 7944 | -7/Zion | Imprinted 7946 | -7/Zion | Declared Zion's savior 8030 | -7/Zion | Given A8's code to call for help 8151 | -7/Zion | Identified exit to Deep Caves 8320 | -7/Zion | Enhanced Grunt warped into view, answering call for help 8335 | -7/Zion | Enhanced Grunt warped into view, answering call for help 9188 | -7/Zion | Build established: Hacker-Mutant 9343 | -7/Zion | Saw the warning signs outside the Deep Caves entrance 9361 | -7/Zion | Entered Deep Caves 9361 | -7/Deep Caves | Accompanied by 7 allies 9363 | -7/Deep Caves | Met 5H-AD0 9610 | -7/Deep Caves | Z-Facility disabled 9667 | -7/Deep Caves | Found Prototype Protection 9694 | -7/Deep Caves | Found Prototype Protection 9694 | -7/Deep Caves | Identified Zio. Weapon Casing (x2) 9974 | -7/Deep Caves | Found Zio. Weapon Casing 10038 | -7/Deep Caves | Found Prototype Protection 10038 | -7/Deep Caves | Identified Zio. Heavy Carapace 10114 | -7/Deep Caves | Found Zio. Weapon Casing 10243 | -7/Deep Caves | Build established: Hacker-Tank 10393 | -7/Deep Caves | Identified exit to Proximity Caves 10393 | -7/Deep Caves | Discovered exit to Proximity Caves (range 15) 10551 | -7/Deep Caves | Spotted as-32293 10559 | -7/Deep Caves | Exposed GOLEM chamber 10571 | -7/Deep Caves | Destroyed as-32293 10595 | -7/Deep Caves | Triggered Deep Caves wall 10615 | -7/Deep Caves | Spotted AS-47789 10647 | -7/Deep Caves | Destroyed 13 combat bots 10650 | -7/Deep Caves | Destroyed AS-47789 10679 | -7/Deep Caves | Found Mobile Assembly Unit 10795 | -7/Deep Caves | Spotted as-61203 10811 | -7/Deep Caves | Core integrity fell below 50% 10821 | -7/Deep Caves | Core integrity fell below 20% 10860 | -7/Deep Caves | Core destroyed Last Messages --------------- 10781_ Acquired Zio. Heavy Carapace. 10784_ Acquired Hrd. Medium Armor Plating. 10788_ AWS/Thermal suddenly breaks down. 10795_ as-61203 IFF system glitched. 10795_ Zio. Heavy Carapace destroyed. 10796_ as-61203: "DSI9AT1D G8OHIBQ29FWG 26R186 QD12WHW8W33 TDK1 81FTS" 10804_ GOLEM Unit springs to life. 10804_ Player 2 attaches Zio. Composite Leg I. 10805_ as-64337 GOLEM Unit beginning Prototype Leg integration. 10805_ Player 2 attaches Exp. Heat Sink. 10808_ as-61203 suffers critical hit (Burn). 10820_ Player 2 attaches Rnf. Deuterium Engine. 10827_ Player 2 attaches Prototype Storage. 10832_ Player 2 removes Rnf. Deuterium Engine. 10832_ Player 2 attaches Antimatter Reactor. 10835_ Player 2 attaches Adv. Heat Sink. 10836_ Zio. Light Carapace destroyed. 10839_ Player 2 removes Adv. Heat Sink. 10839_ Player 2 attaches Adv. Heat Sink. 10844_ Zio. Light Carapace destroyed. Map ----- +----------------------------------------------------+ | | | | | | | | | | | | | | | | | | | | | | | | | | | | | | | | | | | | | | | ?????????"########???????????????????????????? | | ????????? ???????????????????????????? | | ?????????? ???????????????????????????# | | ????????""" ?????????????????????### | | ????????" #######??????????????????#### | | ????????" # # ####????????????????#### | | ????????"" # # @####???????? ???#### | | ????????" # #;###???????? ??#### | | ????????"" # ## ##??????## ??#### | | ????????" ## ##????#### ??### | | ????????""" ## ##????### ??## | | ????????" ## ##???### ??## | | ????????" # ######## ???### | | ????????" ### ???#### | | ????????# #### #???### | | ????????" #?## ######## ## | | ????????" ####?### ######## ## | | ????????""%! ##?### ## #### ## | | ????????"" %! [####??## ### ## | | ????????" [[### ??## #### ## | | ??????### * [### ??### #### ## | | ??""""" % # ## #### | | ??" ! % * ##### | | ??"% #### | | ??" ! % ## | | ??" [ ##### ######### | | ??" = ##### ######### | | ??" !!! ! [ #### #### | | ??" !*%! %= #### ! ### | | ??"""""!!! [ ##### ### | | ?????#### != % ###### #### ## | +----------------------------------------------------+ Best States ------------- Heat Dissipation 60 Energy Generation 27 Energy Capacity 800 Matter Stores 300 Matter Capacity 300 Sight Range 16 Terrain Scan Density 10 Armor Coverage 2225 Resistance: KI 35 Resistance: TH 50 Resistance: EX 35 Resistance: EM 35 Resistance: I 35 Resistance: S 35 Resistance: P 35 Propulsion Shielding 33 Weapon Shielding 100 Phase Shifting 15 Evasion (%) 55 Target Analysis 5 Core Analysis 6 Armor Integrity Analysis 30 Recoil Reduction 2 Particle Charging 20 Offensive Hacking 20 Item Schematics ----------------- Structural Scanner | -8/Materials | Scanalyzed Mak. Armor Plating | -8/Materials | Scanalyzed Imp. Sensor Array | -8/Materials | Scanalyzed Hyb. Deuterium Engine | -7/Factory | Scanalyzed Power Sword | -7/Zion | Archive Adv. Hacking Suite | -7/Zion | Archive Mak. Hacking Suite | -7/Zion | Archive Proton Cannon | -7/Zion | Archive Imp. Salvage Targeting Computer | -7/Zion | Archive Adv. Melee Analysis Suite | -7/Zion | Archive Force Booster | -7/Zion | Archive Imp. Core Shielding | -7/Zion | Archive Med. Treads | -7/Zion | Archive Imp. Coolant Injector | -7/Zion | Archive Gauss Cannon | -7/Zion | Archive Mak. Hover Unit | -7/Zion | Archive Beamcaster | -7/Zion | Archive Mak. Laser | -7/Zion | Archive Robot Schematics ------------------ M-14 Sweeper | -7/Zion | Archive B-48 Gladiator | -7/Zion | Archive M-28 Smith | -7/Zion | Archive L-61 Swordsman | -7/Zion | Archive Fabricated ------------ Hyb. Deuterium Engine | x2 | -7/Factory Alien Tech Used ----------------- None Achievements -------------- Are We The Baddies? Challenges ------------ None Player 2 | -11 -10 -10 -9 -9 -9 -8 -8 -7 -7 -7 -7 -7 ---------- Run | Scr Mat Min Mat Min Exi Min Mat Fac Low Low Zio Dee Slots Evolved 6 | . . 2 . . . 2 2 . . . . . Power . | . . . . . . . . . . . . . Propulsion 2 | . . 1 . . . . 1 . . . . . Utility 2 | . . . . . . 1 1 . . . . . Weapon 2 | . . 1 . . . 1 . . . . . . Parts Attached 85 | . 10 . 7 2 1 1 9 23 3 5 5 19 Parts Lost 23 | . . . 1 . . . . 5 1 2 . 14 Damage Taken 3518 | . . . 221 . . . 111 993 143 105 . 1945 Core 533 | . . . 21 . . . 16 34 9 . . 453 Player 2/Cogmind (%) 65 | . . . 51 . . . 100 23 64 . . 83 Absorbed by Shields 374 | . . . . . . . . 141 57 43 . 133 Damage Inflicted 11221 | . 89 . 269 17 . 22 178 2691 515 106 . 7334 Player 2/Cogmind (%) 51 | . 9 . 43 7 . 8 6 50 55 16 . 71 Combat Hostiles Destroyed 73 | . 1 . 2 . . . 3 21 7 3 . 36 Player 2/Cogmind (%) 48 | . 14 . 50 . . . 25 52 58 25 . 64 Game ------ Seed FieldLinearLaser Manual? 0 Play Time 01:46:28 Cumulative 144.9 hours Start 2022.07.25 @ 22:32:13 End 2022.07.26 @ 01:10:03 Sessions 5 Manual Loads 0 Difficulty Explorer Special Mode AFD2020/Player2 Game No. 190 Rogue 185 Adventurer 0 Explorer 5 Win Type - Total 5 Types 5/0/0/0/0/0/0/0/0 Lore% 64 Gallery% 67 Achievement% 55 Wizard Run 0 Options --------- ASCII 1 Keyboard 1 Movement Numpad Keybinds 0 Fullscreen 1 Font 18/X11 Map View 76x50 Tactical HUD 1 Map Filters NONE Filters NONE Steam X RUN: aae3d77c-7344-4d85-be14-7f76f44f6bb3